[Event "FIDE Grand Swiss 2023"]
[Site "Villa Marina, Douglas, Isle of Man, Isle Of Man"]
[Date "2023.11.02"]
[Round "8.41"]
[White "Mishra, Abhimanyu"]
[Black "Amin, Bassem"]
[Result "1/2-1/2"]
[TimeControl "40/90 + 30 + 30s/move"]
[WhiteFideId "30920019"]
[BlackFideId "10601457"]
[WhiteElo "2592"]
[BlackElo "2680"]

1. e4 {[%clk 01:40:59]} e5 {[%clk 01:40:13]} {[%emt 00:00:47]} 2. Nf3 {[%clk
01:41:23]} {[%emt 00:00:06]} Nc6 {[%clk 01:40:39]} {[%emt 00:00:04]} 3. Bc4
{[%clk 01:41:47]} {[%emt 00:00:06]} Nf6 {[%clk 01:41:02]} {[%emt 00:00:07]} 4.
d3 {[%clk 01:42:09]} {[%emt 00:00:08]} Bc5 {[%clk 01:40:34]} {[%emt 00:00:58]}
5. c3 {[%clk 01:42:27]} {[%emt 00:00:12]} a6 {[%clk 01:40:55]} {[%emt
00:00:09]} 6. O-O {[%clk 01:41:52]} {[%emt 00:01:05]} Ba7 {[%clk 01:39:35]}
{[%emt 00:01:50]} 7. a4 {[%clk 01:40:41]} {[%emt 00:01:40]} d6 {[%clk
01:39:37]} {[%emt 00:00:29]} 8. Re1 {[%clk 01:40:01]} {[%emt 00:01:10]} O-O
{[%clk 01:39:22]} {[%emt 00:00:45]} 9. h3 {[%clk 01:39:54]} {[%emt 00:00:37]}
h6 {[%clk 01:39:36]} {[%emt 00:00:16]} 10. Nbd2 {[%clk 01:39:55]} {[%emt
00:00:29]} Re8 {[%clk 01:39:58]} {[%emt 00:00:08]} 11. b4 {[%clk 01:40:06]}
{[%emt 00:00:19]} Be6 {[%clk 01:40:23]} {[%emt 00:00:05]} 12. Bxe6 {[%clk
01:40:05]} {[%emt 00:00:31]} Rxe6 {[%clk 01:40:49]} {[%emt 00:00:04]} 13. Qc2
{[%clk 01:40:06]} {[%emt 00:00:28]} Qd7 {[%clk 01:35:38]} {[%emt 00:05:42]} 14.
Rb1 {[%clk 01:40:02]} {[%emt 00:00:34]} Rd8 {[%clk 01:34:27]} {[%emt 00:01:41]}
15. b5 {[%clk 01:33:44]} {[%emt 00:06:48]} Ne7 {[%clk 01:33:17]} {[%emt
00:01:40]} 16. d4 {[%clk 01:33:17]} {[%emt 00:00:57]} Ng6 {[%clk 01:33:40]}
{[%emt 00:00:07]} 17. d5 {[%clk 01:29:26]} {[%emt 00:04:21]} Ree8 {[%clk
01:34:03]} {[%emt 00:00:07]} 18. c4 {[%clk 01:27:15]} {[%emt 00:02:41]} Bc5
{[%clk 01:16:59]} {[%emt 00:17:35]} 19. Nb3 {[%clk 01:20:24]} {[%emt 00:07:20]}
Bb4 {[%clk 01:16:41]} {[%emt 00:00:48]} 20. Bd2 {[%clk 01:16:15]} {[%emt
00:04:40]} Bxd2 {[%clk 01:15:39]} {[%emt 00:01:32]} 21. Nfxd2 {[%clk 01:05:02]}
{[%emt 00:11:42]} b6 {[%clk 01:15:47]} {[%emt 00:00:22]} 22. a5 {[%clk
01:04:04]} {[%emt 00:01:28]} axb5 {[%clk 01:15:04]} {[%emt 00:01:13]} 23. cxb5
{[%clk 01:03:44]} {[%emt 00:00:51]} Qxb5 {[%clk 01:15:03]} {[%emt 00:00:30]} 24.
Nd4 {[%clk 00:57:25]} {[%emt 00:06:48]} Qxa5 {[%clk 01:02:59]} {[%emt
00:12:35]} 25. Nc6 {[%clk 00:56:01]} {[%emt 00:01:54]} Qc5 {[%clk 01:01:45]}
{[%emt 00:01:44]} 26. Qxc5 {[%clk 00:50:16]} {[%emt 00:06:15]} dxc5 {[%clk
01:01:32]} {[%emt 00:00:43]} 27. Nxd8 {[%clk 00:50:41]} {[%emt 00:00:05]} Rxd8
{[%clk 01:01:57]} {[%emt 00:00:05]} 28. Nc4 {[%clk 00:43:39]} {[%emt 00:07:31]}
Ne8 {[%clk 01:02:03]} {[%emt 00:00:25]} 29. Re3 {[%clk 00:37:57]} {[%emt
00:06:12]} f6 {[%clk 01:01:58]} {[%emt 00:00:36]} 30. Ra3 {[%clk 00:36:36]}
{[%emt 00:01:50]} Nh8 {[%clk 00:53:37]} {[%emt 00:08:51]} 31. Rba1 {[%clk
00:23:31]} {[%emt 00:13:35]} Nf7 {[%clk 00:51:28]} {[%emt 00:02:39]} 32. Ra8
{[%clk 00:22:43]} {[%emt 00:01:18]} Rxa8 {[%clk 00:51:26]} {[%emt 00:00:33]} 33.
Rxa8 {[%clk 00:23:11]} {[%emt 00:00:02]} Kf8 {[%clk 00:51:51]} {[%emt
00:00:04]} 34. d6 {[%clk 00:14:29]} {[%emt 00:09:12]} Nfxd6 {[%clk 00:51:12]}
{[%emt 00:01:09]} 35. Nxd6 {[%clk 00:14:24]} {[%emt 00:00:35]} cxd6 {[%clk
00:51:39]} {[%emt 00:00:03]} 36. Rb8 {[%clk 00:14:47]} {[%emt 00:00:07]} Ke7
{[%clk 00:48:36]} {[%emt 00:03:33]} 37. Rxb6 {[%clk 00:14:42]} {[%emt
00:00:35]} h5 {[%clk 00:45:18]} {[%emt 00:03:49]} 38. Kf1 {[%clk 00:11:19]}
{[%emt 00:03:53]} g6 {[%clk 00:45:31]} {[%emt 00:00:16]} 39. Ke2 {[%clk
00:08:53]} {[%emt 00:02:56]} f5 {[%clk 00:45:12]} {[%emt 00:00:49]} 40. f3
{[%clk 00:06:49]} {[%emt 00:02:34]} Nf6 {[%clk 00:42:42]} {[%emt 00:03:00]} 41.
Kd3 {[%clk 00:49:55]} {[%emt 00:07:23]} 1/2-1/2

[Event "FIDE Grand Swiss 2023"]
[Site "Villa Marina, Douglas, Isle of Man, Isle Of Man"]
[Date "2023.11.02"]
[Round "8.42"]
[White "Bachmann, Axel"]
[Black "Ivanchuk, Vasyl"]
[Result "1-0"]
[TimeControl "40/90 + 30 + 30s/move"]
[WhiteFideId "3700488"]
[BlackFideId "14100010"]
[WhiteElo "2604"]
[BlackElo "2653"]

1. Nf3 {[%clk 01:40:55]} {[%emt 00:00:04]} Nf6 {[%clk 01:40:43]} {[%emt
00:00:18]} 2. c4 {[%clk 01:41:14]} {[%emt 00:00:11]} b6 {[%clk 01:41:10]}
{[%emt 00:00:03]} 3. d4 {[%clk 01:40:21]} {[%emt 00:01:23]} e6 {[%clk
01:41:32]} {[%emt 00:00:09]} 4. g3 {[%clk 01:40:32]} {[%emt 00:00:19]} Ba6
{[%clk 01:41:59]} {[%emt 00:00:03]} 5. b3 {[%clk 01:40:31]} {[%emt 00:00:31]}
Bb4+ {[%clk 01:42:05]} {[%emt 00:00:24]} 6. Bd2 {[%clk 01:40:54]} {[%emt
00:00:07]} Be7 {[%clk 01:42:32]} {[%emt 00:00:03]} 7. Bg2 {[%clk 01:32:22]}
{[%emt 00:09:01]} c6 {[%clk 01:41:50]} {[%emt 00:01:13]} 8. Bc3 {[%clk
01:29:20]} {[%emt 00:03:31]} d5 {[%clk 01:42:11]} {[%emt 00:00:09]} 9. Nbd2
{[%clk 01:29:46]} {[%emt 00:00:05]} Nbd7 {[%clk 01:42:36]} {[%emt 00:00:05]} 10.
O-O {[%clk 01:28:12]} {[%emt 00:02:03]} Rc8 {[%clk 01:29:41]} {[%emt 00:13:26]}
11. Rc1 {[%clk 01:18:45]} {[%emt 00:09:56]} O-O {[%clk 01:27:05]} {[%emt
00:03:06]} 12. Bb2 {[%clk 01:17:28]} {[%emt 00:01:47]} Bb7 {[%clk 01:09:56]}
{[%emt 00:17:40]} 13. Qc2 {[%clk 00:49:52]} {[%emt 00:28:05]} c5 {[%clk
01:09:48]} {[%emt 00:00:38]} 14. dxc5 {[%clk 00:49:50]} {[%emt 00:00:32]} bxc5
{[%clk 01:07:48]} {[%emt 00:02:30]} 15. e3 {[%clk 00:49:48]} {[%emt 00:00:32]}
Qb6 {[%clk 01:06:19]} {[%emt 00:02:00]} 16. Ne5 {[%clk 00:43:08]} {[%emt
00:07:10]} Nxe5 {[%clk 01:06:30]} {[%emt 00:00:19]} 17. Bxe5 {[%clk 00:42:47]}
{[%emt 00:00:51]} Rfd8 {[%clk 01:06:56]} {[%emt 00:00:03]} 18. cxd5 {[%clk
00:42:38]} {[%emt 00:00:39]} exd5 {[%clk 01:07:21]} {[%emt 00:00:05]} 19. Rfd1
{[%clk 00:42:46]} {[%emt 00:00:22]} Qe6 {[%clk 01:07:05]} {[%emt 00:00:46]} 20.
Bb2 {[%clk 00:40:28]} {[%emt 00:02:48]} h6 {[%clk 01:07:18]} {[%emt 00:00:17]}
21. Qb1 {[%clk 00:38:45]} {[%emt 00:02:14]} a5 {[%clk 00:59:19]} {[%emt
00:08:30]} 22. Bc3 {[%clk 00:37:28]} {[%emt 00:01:46]} Qa6 {[%clk 00:58:41]}
{[%emt 00:01:08]} 23. Qf5 {[%clk 00:32:03]} {[%emt 00:05:55]} a4 {[%clk
00:57:56]} {[%emt 00:01:15]} 24. bxa4 {[%clk 00:26:29]} {[%emt 00:06:04]} Qxa4
{[%clk 00:56:40]} {[%emt 00:01:46]} 25. Nc4 {[%clk 00:22:47]} {[%emt 00:04:12]}
Qa6 {[%clk 00:45:24]} {[%emt 00:11:45]} 26. Bxf6 {[%clk 00:21:59]} {[%emt
00:01:18]} g6 {[%clk 00:41:57]} {[%emt 00:03:58]} 27. Qf3 {[%clk 00:13:13]}
{[%emt 00:09:16]} Bxf6 {[%clk 00:40:03]} {[%emt 00:02:23]} 28. Rb1 {[%clk
00:13:27]} {[%emt 00:00:16]} Qe6 {[%clk 00:18:48]} {[%emt 00:21:45]} 29. Rxb7
{[%clk 00:06:49]} {[%emt 00:07:08]} dxc4 {[%clk 00:19:16]} {[%emt 00:00:02]} 30.
Rc1 {[%clk 00:07:11]} {[%emt 00:00:09]} Rd6 {[%clk 00:19:04]} {[%emt 00:00:41]}
31. Qf4 {[%clk 00:07:01]} {[%emt 00:00:40]} Rcd8 {[%clk 00:18:02]} {[%emt
00:01:32]} 32. Qxc4 {[%clk 00:05:44]} {[%emt 00:01:47]} Qxc4 {[%clk 00:14:23]}
{[%emt 00:04:09]} 33. Rxc4 {[%clk 00:06:08]} {[%emt 00:00:07]} Rd2 {[%clk
00:14:52]} {[%emt 00:00:01]} 34. Rxc5 {[%clk 00:05:39]} {[%emt 00:00:58]} 1-0

[Event "FIDE Grand Swiss 2023"]
[Site "Villa Marina, Douglas, Isle of Man, Isle Of Man"]
[Date "2023.11.02"]
[Round "8.43"]
[White "Svane, Rasmus"]
[Black "Akobian, Varuzhan"]
[Result "1/2-1/2"]
[TimeControl "40/90 + 30 + 30s/move"]
[WhiteFideId "4657101"]
[BlackFideId "13300580"]
[WhiteElo "2646"]
[BlackElo "2582"]

1. d4 {[%clk 01:40:56]} {[%emt 00:00:03]} Nf6 {[%clk 01:40:23]} {[%emt
00:00:37]} 2. c4 {[%clk 01:41:19]} {[%emt 00:00:08]} e6 {[%clk 01:40:50]}
{[%emt 00:00:03]} 3. Nf3 {[%clk 01:41:40]} {[%emt 00:00:09]} d5 {[%clk
01:39:35]} {[%emt 00:01:45]} 4. Nc3 {[%clk 01:42:00]} {[%emt 00:00:09]} Be7
{[%clk 01:39:17]} {[%emt 00:00:47]} 5. Bf4 {[%clk 01:42:19]} {[%emt 00:00:11]}
O-O {[%clk 01:39:30]} {[%emt 00:00:18]} 6. e3 {[%clk 01:42:44]} {[%emt
00:00:05]} Nbd7 {[%clk 01:38:41]} {[%emt 00:01:19]} 7. c5 {[%clk 01:42:23]}
{[%emt 00:00:50]} c6 {[%clk 01:36:31]} {[%emt 00:02:41]} 8. h3 {[%clk
01:42:07]} {[%emt 00:00:47]} b6 {[%clk 01:36:21]} {[%emt 00:00:39]} 9. b4
{[%clk 01:42:25]} {[%emt 00:00:12]} a5 {[%clk 01:36:46]} {[%emt 00:00:06]} 10.
a3 {[%clk 01:42:48]} {[%emt 00:00:07]} Ba6 {[%clk 01:36:57]} {[%emt 00:00:18]}
11. Bxa6 {[%clk 01:36:04]} {[%emt 00:07:14]} Rxa6 {[%clk 01:37:05]} {[%emt
00:00:22]} 12. O-O {[%clk 01:34:40]} {[%emt 00:01:55]} Qa8 {[%clk 01:31:40]}
{[%emt 00:05:55]} 13. Rb1 {[%clk 01:27:26]} {[%emt 00:07:43]} axb4 {[%clk
01:21:20]} {[%emt 00:10:51]} 14. axb4 {[%clk 01:27:15]} {[%emt 00:00:40]} Ra3
{[%clk 01:13:58]} {[%emt 00:07:53]} 15. Qc2 {[%clk 01:23:43]} {[%emt 00:04:01]}
Qb7 {[%clk 01:12:29]} {[%emt 00:01:59]} 16. Rfc1 {[%clk 01:13:27]} {[%emt
00:10:45]} Rfa8 {[%clk 01:12:01]} {[%emt 00:00:59]} 17. Nd2 {[%clk 01:13:43]}
{[%emt 00:00:14]} Bd8 {[%clk 00:55:24]} {[%emt 00:17:07]} 18. Nb3 {[%clk
01:11:03]} {[%emt 00:03:11]} b5 {[%clk 00:39:17]} {[%emt 00:16:36]} 19. Qb2
{[%clk 01:07:55]} {[%emt 00:03:39]} R3a6 {[%clk 00:37:49]} {[%emt 00:01:56]} 20.
Ra1 {[%clk 01:07:29]} {[%emt 00:00:57]} h6 {[%clk 00:31:07]} {[%emt 00:07:12]}
21. Rxa6 {[%clk 00:59:40]} {[%emt 00:08:20]} Rxa6 {[%clk 00:31:03]} {[%emt
00:00:34]} 22. Ra1 {[%clk 01:00:05]} {[%emt 00:00:05]} Ne8 {[%clk 00:26:05]}
{[%emt 00:05:27]} 23. g4 {[%clk 00:43:13]} {[%emt 00:17:22]} Qa8 {[%clk
00:19:27]} {[%emt 00:07:08]} 24. Rxa6 {[%clk 00:41:47]} {[%emt 00:01:56]} Qxa6
{[%clk 00:19:56]} {[%emt 00:00:02]} 25. Kg2 {[%clk 00:41:05]} {[%emt 00:01:11]}
Kf8 {[%clk 00:17:10]} {[%emt 00:03:16]} 26. Bg3 {[%clk 00:39:36]} {[%emt
00:02:00]} Kg8 {[%clk 00:16:43]} {[%emt 00:00:57]} 27. f3 {[%clk 00:38:40]}
{[%emt 00:01:25]} Bc7 {[%clk 00:08:56]} {[%emt 00:08:16]} 28. Bxc7 {[%clk
00:32:11]} {[%emt 00:07:00]} Nxc7 {[%clk 00:09:17]} {[%emt 00:00:09]} 29. Na5
{[%clk 00:32:36]} {[%emt 00:00:06]} Qa8 {[%clk 00:04:23]} {[%emt 00:05:23]} 30.
Ne2 {[%clk 00:30:36]} {[%emt 00:02:30]} Na6 {[%clk 00:03:16]} {[%emt 00:01:38]}
31. Nf4 {[%clk 00:29:47]} {[%emt 00:01:19]} Qc8 {[%clk 00:02:30]} {[%emt
00:01:15]} 32. Nd3 {[%clk 00:29:47]} {[%emt 00:00:29]} Qc7 {[%clk 00:02:18]}
{[%emt 00:00:43]} 33. Nb3 {[%clk 00:24:06]} {[%emt 00:06:10]} Ndb8 {[%clk
00:00:44]} {[%emt 00:02:05]} 34. Qa1 {[%clk 00:23:47]} {[%emt 00:00:50]} Qd8
{[%clk 00:01:02]} {[%emt 00:00:11]} 35. Qe1 {[%clk 00:22:05]} {[%emt 00:02:13]}
Qc7 {[%clk 00:01:21]} {[%emt 00:00:11]} 36. e4 {[%clk 00:16:51]} {[%emt
00:05:44]} Kf8 {[%clk 00:00:59]} {[%emt 00:00:52]} 37. e5 {[%clk 00:13:03]}
{[%emt 00:04:17]} Nd7 {[%clk 00:00:56]} {[%emt 00:00:33]} 38. f4 {[%clk
00:13:28]} {[%emt 00:00:05]} Kg8 {[%clk 00:01:00]} {[%emt 00:00:26]} 39. Qh4
{[%clk 00:07:39]} {[%emt 00:06:19]} Nf8 {[%clk 00:01:17]} {[%emt 00:00:14]} 40.
f5 {[%clk 00:06:48]} {[%emt 00:01:21]} Nh7 {[%clk 00:00:49]} {[%emt 00:00:57]}
41. Nd2 {[%clk 00:38:09]} {[%emt 00:19:09]} Ng5 {[%clk 00:30:22]} {[%emt
00:20:57]} 42. Nf3 {[%clk 00:32:12]} {[%emt 00:06:27]} Ne4 {[%clk 00:28:31]}
{[%emt 00:02:20]} 43. fxe6 {[%clk 00:16:03]} {[%emt 00:16:41]} fxe6 {[%clk
00:28:39]} {[%emt 00:00:21]} 44. Qe1 {[%clk 00:16:25]} {[%emt 00:00:08]} Nb8
{[%clk 00:07:05]} {[%emt 00:22:05]} 45. Qa1 {[%clk 00:16:23]} {[%emt 00:00:31]}
Nd7 {[%clk 00:07:29]} {[%emt 00:00:06]} 46. Qa8+ {[%clk 00:16:17]} {[%emt
00:00:35]} Nf8 {[%clk 00:07:52]} {[%emt 00:00:08]} 47. h4 {[%clk 00:14:16]}
{[%emt 00:02:31]} g6 {[%clk 00:04:56]} {[%emt 00:03:26]} 48. Nf2 {[%clk
00:10:49]} {[%emt 00:03:57]} Qf7 {[%clk 00:03:55]} {[%emt 00:01:31]} 49. Nh3
{[%clk 00:09:19]} {[%emt 00:02:00]} h5 {[%clk 00:03:26]} {[%emt 00:00:59]} 50.
Nh2 {[%clk 00:08:06]} {[%emt 00:01:43]} Qe7 {[%clk 00:01:37]} {[%emt 00:02:19]}
51. g5 {[%clk 00:07:36]} {[%emt 00:01:00]} Qd7 {[%clk 00:01:27]} {[%emt
00:00:40]} 52. Nf1 {[%clk 00:07:04]} {[%emt 00:01:02]} Kf7 {[%clk 00:01:06]}
{[%emt 00:00:51]} 53. Ne3 {[%clk 00:06:08]} {[%emt 00:01:26]} Qe8 {[%clk
00:01:12]} {[%emt 00:00:24]} 54. Qa2 {[%clk 00:05:47]} {[%emt 00:00:51]} Qd7
{[%clk 00:00:34]} {[%emt 00:01:08]} 55. Nf4 {[%clk 00:06:00]} {[%emt 00:00:17]}
Qb7 {[%clk 00:00:37]} {[%emt 00:00:28]} 56. Nd3 {[%clk 00:05:32]} {[%emt
00:00:58]} Ke8 {[%clk 00:00:38]} {[%emt 00:00:28]} 57. Nf1 {[%clk 00:02:43]}
{[%emt 00:03:19]} Ke7 {[%clk 00:00:45]} {[%emt 00:00:24]} 58. Ng3 {[%clk
00:02:53]} {[%emt 00:00:20]} Nxg3 {[%clk 00:00:52]} {[%emt 00:00:23]} 59. Kxg3
{[%clk 00:03:17]} {[%emt 00:00:05]} Ke8 {[%clk 00:01:05]} {[%emt 00:00:17]} 60.
Kf3 {[%clk 00:01:38]} {[%emt 00:02:09]} Kd7 {[%clk 00:00:38]} {[%emt 00:00:57]}
61. Ke3 {[%clk 00:01:54]} {[%emt 00:00:14]} Ke8 {[%clk 00:13:22]} {[%emt
00:02:46]} 62. Qa5 {[%clk 00:13:36]} {[%emt 00:03:49]} Kd7 {[%clk 00:11:59]}
{[%emt 00:01:53]} 63. Nc1 {[%clk 00:09:56]} {[%emt 00:04:09]} Kc8 {[%clk
00:08:28]} {[%emt 00:04:00]} 64. Qa2 {[%clk 00:09:47]} {[%emt 00:00:40]} Kd8
{[%clk 00:08:01]} {[%emt 00:00:57]} 65. Nb3 {[%clk 00:08:18]} {[%emt 00:01:59]}
Ke8 {[%clk 00:08:10]} {[%emt 00:00:20]} 66. Nc1 {[%clk 00:05:31]} {[%emt
00:03:18]} Kd7 {[%clk 00:06:28]} {[%emt 00:02:11]} 67. Qf2 {[%clk 00:05:53]}
{[%emt 00:00:08]} Ke8 {[%clk 00:06:55]} {[%emt 00:00:04]} 68. Nd3 {[%clk
00:04:17]} {[%emt 00:02:07]} Qa7 {[%clk 00:03:57]} {[%emt 00:03:28]} 69. Qf6
{[%clk 00:03:49]} {[%emt 00:00:57]} Qf7 {[%clk 00:03:08]} {[%emt 00:01:18]} 70.
Nf4 {[%clk 00:04:11]} {[%emt 00:00:09]} Qa7 {[%clk 00:01:58]} {[%emt 00:01:40]}
71. Nd3 {[%clk 00:02:25]} {[%emt 00:02:17]} Qf7 {[%clk 00:02:04]} {[%emt
00:00:24]} 72. Kd2 {[%clk 00:01:27]} {[%emt 00:01:28]} Nd7 {[%clk 00:01:39]}
{[%emt 00:00:54]} 73. Qh8+ {[%clk 00:01:39]} {[%emt 00:00:18]} Qf8 {[%clk
00:01:35]} {[%emt 00:00:34]} 74. Qh7 {[%clk 00:01:34]} {[%emt 00:00:35]} Qf7
{[%clk 00:02:00]} {[%emt 00:00:05]} 75. Qh8+ {[%clk 00:01:14]} {[%emt
00:00:51]} Qf8 {[%clk 00:02:24]} {[%emt 00:00:04]} 76. Qh7 {[%clk 00:01:06]}
{[%emt 00:00:38]} Qf7 {[%clk 00:02:49]} {[%emt 00:00:05]} 77. Qh8+ {[%clk
00:00:43]} {[%emt 00:00:54]} 1/2-1/2

[Event "FIDE Grand Swiss 2023"]
[Site "Villa Marina, Douglas, Isle of Man, Isle Of Man"]
[Date "2023.11.02"]
[Round "8.44"]
[White "Vokhidov, Shamsiddin"]
[Black "Ponomariov, Ruslan"]
[Result "1/2-1/2"]
[TimeControl "40/90 + 30 + 30s/move"]
[WhiteFideId "14204223"]
[BlackFideId "14103320"]
[WhiteElo "2578"]
[BlackElo "2641"]

1. e4 {[%clk 01:40:57]} {[%emt 00:00:02]} c6 {[%clk 01:40:45]} {[%emt
00:00:15]} 2. d4 {[%clk 01:39:24]} {[%emt 00:02:03]} d5 {[%clk 01:41:07]}
{[%emt 00:00:08]} 3. exd5 {[%clk 01:39:00]} {[%emt 00:00:55]} cxd5 {[%clk
01:41:29]} {[%emt 00:00:08]} 4. Bd3 {[%clk 01:39:27]} {[%emt 00:00:03]} Nc6
{[%clk 01:39:08]} {[%emt 00:02:50]} 5. c3 {[%clk 01:39:52]} {[%emt 00:00:06]}
Nf6 {[%clk 01:31:12]} {[%emt 00:08:25]} 6. Bf4 {[%clk 01:38:33]} {[%emt
00:01:49]} Bg4 {[%clk 01:31:00]} {[%emt 00:00:41]} 7. Qb3 {[%clk 01:38:57]}
{[%emt 00:00:06]} Qc8 {[%clk 01:31:09]} {[%emt 00:00:21]} 8. Nd2 {[%clk
01:39:06]} {[%emt 00:00:22]} e6 {[%clk 01:28:35]} {[%emt 00:03:04]} 9. Ngf3
{[%clk 01:39:31]} {[%emt 00:00:04]} Be7 {[%clk 01:23:12]} {[%emt 00:05:54]} 10.
O-O {[%clk 01:39:37]} {[%emt 00:00:24]} Bh5 {[%clk 01:22:03]} {[%emt 00:01:39]}
11. Rfe1 {[%clk 01:33:01]} {[%emt 00:07:06]} Bg6 {[%clk 01:14:00]} {[%emt
00:08:32]} 12. Bxg6 {[%clk 01:31:25]} {[%emt 00:02:07]} hxg6 {[%clk 01:13:47]}
{[%emt 00:00:43]} 13. Qb5 {[%clk 01:30:26]} {[%emt 00:01:29]} Nd7 {[%clk
01:00:50]} {[%emt 00:13:27]} 14. g3 {[%clk 01:22:03]} {[%emt 00:08:53]} a6
{[%clk 00:50:02]} {[%emt 00:11:17]} 15. Qd3 {[%clk 01:22:16]} {[%emt 00:00:18]}
b5 {[%clk 00:50:22]} {[%emt 00:00:10]} 16. a4 {[%clk 01:12:07]} {[%emt
00:10:39]} bxa4 {[%clk 00:49:27]} {[%emt 00:01:25]} 17. Rxa4 {[%clk 01:09:56]}
{[%emt 00:02:42]} a5 {[%clk 00:49:27]} {[%emt 00:00:30]} 18. h4 {[%clk
01:01:07]} {[%emt 00:09:18]} O-O {[%clk 00:46:35]} {[%emt 00:03:21]} 19. Kg2
{[%clk 01:00:35]} {[%emt 00:01:03]} Qb7 {[%clk 00:44:01]} {[%emt 00:03:04]} 20.
b3 {[%clk 00:50:54]} {[%emt 00:10:10]} Rfc8 {[%clk 00:42:17]} {[%emt 00:02:14]}
21. Raa1 {[%clk 00:51:04]} {[%emt 00:00:21]} Nf6 {[%clk 00:38:17]} {[%emt
00:04:29]} 22. Ra2 {[%clk 00:44:23]} {[%emt 00:07:12]} Ne4 {[%clk 00:36:37]}
{[%emt 00:02:10]} 23. Re2 {[%clk 00:35:16]} {[%emt 00:09:37]} Bf6 {[%clk
00:32:29]} {[%emt 00:04:37]} 24. Nxe4 {[%clk 00:31:40]} {[%emt 00:04:06]} dxe4
{[%clk 00:32:51]} {[%emt 00:00:09]} 25. Qxe4 {[%clk 00:31:54]} {[%emt
00:00:16]} Qxb3 {[%clk 00:33:14]} {[%emt 00:00:06]} 26. Rec2 {[%clk 00:31:26]}
{[%emt 00:00:59]} a4 {[%clk 00:31:36]} {[%emt 00:02:09]} 27. Bd6 {[%clk
00:25:18]} {[%emt 00:06:37]} Be7 {[%clk 00:17:50]} {[%emt 00:14:16]} 28. Ra3
{[%clk 00:20:03]} {[%emt 00:05:45]} Qb6 {[%clk 00:15:22]} {[%emt 00:02:58]} 29.
Bxe7 {[%clk 00:17:51]} {[%emt 00:02:43]} Nxe7 {[%clk 00:15:51]} {[%emt
00:00:01]} 30. Ne5 {[%clk 00:16:28]} {[%emt 00:01:52]} Qb1 {[%clk 00:10:28]}
{[%emt 00:05:53]} 31. Qe2 {[%clk 00:15:02]} {[%emt 00:01:56]} Qb7+ {[%clk
00:07:44]} {[%emt 00:03:14]} 32. Qf3 {[%clk 00:11:35]} {[%emt 00:03:57]} Qxf3+
{[%clk 00:07:35]} {[%emt 00:00:39]} 33. Kxf3 {[%clk 00:12:04]} {[%emt
00:00:02]} Nc6 {[%clk 00:05:58]} {[%emt 00:02:06]} 34. Nxc6 {[%clk 00:09:41]}
{[%emt 00:02:54]} Rxc6 {[%clk 00:06:27]} 35. Ke4 {[%clk 00:10:04]} {[%emt
00:00:06]} Kf8 {[%clk 00:06:44]} {[%emt 00:00:13]} 36. Rb2 {[%clk 00:08:43]}
{[%emt 00:01:52]} Rc7 {[%clk 00:06:41]} {[%emt 00:00:33]} 37. Rb4 {[%clk
00:08:28]} {[%emt 00:00:45]} Ke7 {[%clk 00:06:49]} {[%emt 00:00:21]} 38. c4
{[%clk 00:08:14]} {[%emt 00:00:44]} Rca7 {[%clk 00:06:56]} {[%emt 00:00:24]} 39.
Kd3 {[%clk 00:04:04]} {[%emt 00:04:39]} Kd6 {[%clk 00:06:52]} {[%emt 00:00:34]}
40. Kc3 {[%clk 00:04:10]} {[%emt 00:00:24]} Kc6 {[%clk 00:06:16]} {[%emt
00:01:06]} 41. Rb5 {[%clk 00:02:22]} {[%emt 00:02:19]} Ra6 {[%clk 00:03:28]}
{[%emt 00:03:17]} 42. Kb4 {[%clk 00:48:28]} {[%emt 00:04:25]} R6a7 {[%clk
00:52:44]} {[%emt 00:01:14]} 43. g4 {[%clk 00:48:17]} {[%emt 00:00:41]} Rd8
{[%clk 00:45:21]} {[%emt 00:07:52]} 44. Rc5+ {[%clk 00:47:58]} {[%emt
00:00:49]} Kb6 {[%clk 00:45:24]} {[%emt 00:00:27]} 45. Rb5+ {[%clk 00:46:31]}
{[%emt 00:01:57]} Kc6 {[%clk 00:45:12]} {[%emt 00:00:42]} 46. Kc3 {[%clk
00:46:58]} {[%emt 00:00:03]} Rh8 {[%clk 00:43:25]} {[%emt 00:02:16]} 47. h5
{[%clk 00:47:03]} {[%emt 00:00:25]} gxh5 {[%clk 00:43:38]} {[%emt 00:00:18]} 48.
gxh5 {[%clk 00:46:07]} {[%emt 00:01:26]} Rh6 {[%clk 00:43:16]} {[%emt
00:00:51]} 49. Kb4 {[%clk 00:40:17]} {[%emt 00:06:21]} Rf6 {[%clk 00:42:59]}
{[%emt 00:00:46]} 50. Rxa4 {[%clk 00:40:44]} {[%emt 00:00:04]} Rxa4+ {[%clk
00:43:23]} {[%emt 00:00:07]} 51. Kxa4 {[%clk 00:41:12]} {[%emt 00:00:02]} Rxf2
{[%clk 00:42:20]} {[%emt 00:01:32]} 52. Rg5 {[%clk 00:41:35]} {[%emt 00:00:07]}
Rf4 {[%clk 00:40:51]} {[%emt 00:01:58]} 53. Rxg7 {[%clk 00:42:01]} {[%emt
00:00:05]} Rxd4 {[%clk 00:41:17]} {[%emt 00:00:04]} 54. Rxf7 {[%clk 00:38:36]}
{[%emt 00:03:56]} Rxc4+ {[%clk 00:41:20]} {[%emt 00:00:26]} 55. Kb3 {[%clk
00:39:04]} {[%emt 00:00:02]} Rh4 {[%clk 00:41:40]} {[%emt 00:00:10]} 56. Rh7
{[%clk 00:39:32]} {[%emt 00:00:02]} Kd5 {[%clk 00:41:46]} {[%emt 00:00:24]} 57.
h6 {[%clk 00:39:51]} {[%emt 00:00:11]} Ke5 {[%clk 00:41:32]} {[%emt 00:00:44]}
58. Rh8 {[%clk 00:40:17]} {[%emt 00:00:04]} Kf6 {[%clk 00:41:50]} {[%emt
00:00:12]} 59. Kc3 {[%clk 00:40:31]} {[%emt 00:00:17]} Kg6 {[%clk 00:42:12]}
{[%emt 00:00:07]} 60. Re8 {[%clk 00:40:51]} {[%emt 00:00:10]} Rxh6 {[%clk
00:42:37]} {[%emt 00:00:05]} 61. Rxe6+ {[%clk 00:41:18]} {[%emt 00:00:03]}
1/2-1/2